bitfinex/quotes_BTCUSD_20251011
["timestamp","ask_amount","ask_price","bid_price","bid_amount"]
[1760214259001,0.28781456,110890.0,110880.0,0.0159619]
[1760214259273,0.33090123,110890.0,110880.0,0.0487119]
[1760214259486,0.29656123,110890.0,110880.0,0.0487119]
[1760214261218,0.32851235,110890.0,110880.0,0.0487119]
[1760214261442,0.30232235,110890.0,110880.0,0.07319881]
[1760214261659,0.30232235,110890.0,110880.0,0.28073399]
[1760214262118,0.30232235,110890.0,110880.0,0.25624708]
[1760214262305,0.30232235,110890.0,110880.0,0.0487119]
[1760214263035,0.30232235,110890.0,110880.0,0.0758719]
[1760214263478,0.27217045,110890.0,110880.0,0.0758719]
[1760214263699,0.27217045,110890.0,110880.0,0.25624708]
[1760214264143,0.09181154,110890.0,110880.0,0.30148751]
[1760214264366,0.03592338,110890.0,110880.0,0.30148751]
[1760214264598,0.27681229,110890.0,110880.0,0.0159619]
[1760214264811,1.05793311,110890.0,110880.0,0.0028619]
[1760214265690,1.00549311,110890.0,110880.0,0.0159619]
[1760214265905,0.36473802,110890.0,110880.0,0.0487119]
[1760214266123,0.33039802,110890.0,110880.0,0.0487119]
[1760214266351,0.24021933,110890.0,110880.0,0.07319917]
[1760214266810,0.03592338,110890.0,110880.0,0.29382716]
[1760214267026,0.01677375,110890.0,110880.0,0.28073435]
[1760214267700,0.00015142,110890.0,110880.0,0.28073435]
[1760214268125,0.18051033,110890.0,110880.0,0.28073435]
[1760214268348,0.00015142,110890.0,110880.0,0.28073435]
[1760214268791,0.00015142,110890.0,110880.0,0.92148944]
[1760214270095,0.00015142,110890.0,110880.0,0.28073435]
[1760214272987,0.00015142,110890.0,110880.0,0.92148944]
[1760214273196,0.00015142,110890.0,110880.0,0.28073435]
[1760214276731,0.00015142,110890.0,110880.0,0.22908708]
[1760214276732,0.18051033,110890.0,110880.0,0.22908708]
[1760214276934,0.20582033,110890.0,110880.0,0.0487119]
[1760214277172,0.23863033,110890.0,110880.0,0.0159619]
[1760214277378,0.3205879,110890.0,110880.0,0.0028619]
[1760214277793,1.55891176,110890.0,110880.0,0.0028619]
[1760214278006,0.59700753,110890.0,110880.0,0.0493919]
[1760214278216,0.01930105,110890.0,110880.0,0.09961706]
[1760214278478,0.00015142,110890.0,110880.0,0.27999224]
[1760214281277,0.23821033,110890.0,110880.0,0.0144819]
[1760214281492,0.2125479,110890.0,110880.0,0.0467219]
[1760214281709,0.2125479,110890.0,110880.0,0.22709708]
[1760214281923,0.2702479,110890.0,110880.0,0.0144819]
[1760214282168,0.2365479,110890.0,110880.0,0.0467219]
[1760214282383,0.2702479,110890.0,110880.0,0.0137719]
[1760214282611,0.3183279,110890.0,110880.0,0.0028619]
[1760214282883,0.2702479,110890.0,110880.0,0.0137719]
[1760214283323,0.00015142,110890.0,110880.0,0.26404748]
[1760214283535,0.18051033,110890.0,110880.0,0.0587023]
[1760214283964,0.18051033,110890.0,110880.0,0.26404748]
[1760214284180,0.23821033,110890.0,110880.0,0.0587023]
[1760214284388,0.3183279,110890.0,110880.0,0.0028619]
[1760214284814,0.08973757,110890.0,110880.0,0.0460119]
[1760214285030,0.18035891,110890.0,110880.0,0.0709819]
[1760214285246,0.23639648,110890.0,110880.0,0.0460119]
[1760214285458,0.23639648,110890.0,110880.0,0.07022915]
[1760214286140,0.21239648,110890.0,110880.0,0.07022915]
[1760214286377,1.06856199,110900.0,110880.0,0.07022915]
[1760214286577,0.18035891,110890.0,110880.0,0.07073388]
[1760214287330,0.18035891,110890.0,110880.0,0.27607906]
[1760214287545,0.21405891,110890.0,110880.0,0.07073388]
[1760214287764,0.18035891,110890.0,110880.0,0.07073388]
[1760214287981,0.18035891,110890.0,110880.0,0.09570388]
[1760214288414,0.18035891,110890.0,110880.0,0.07073388]
[1760214288627,0.20435891,110890.0,110880.0,0.07073388]
[1760214288849,0.18035891,110890.0,110880.0,0.07073388]
[1760214289071,0.18035891,110890.0,110880.0,0.04651663]
[1760214289072,0.23805891,110890.0,110880.0,0.04651663]
[1760214289325,0.20435891,110890.0,110880.0,0.04651663]
[1760214289548,1.55461467,110890.0,110880.0,0.00336663]
[1760214290295,0.55051081,110890.0,110880.0,0.04651663]
[1760214290533,0.50568299,110890.0,110880.0,0.07922852]
[1760214290756,0.50568299,110890.0,110880.0,0.03607852]
[1760214290757,0.58504632,110890.0,110880.0,0.03607852]
[1760214290974,1.51352208,110890.0,110880.0,0.01181066]
[1760214291191,1.54273546,110890.0,110880.0,0.01181066]
[1760214291854,1.44791242,110880.0,110870.0,0.01577069]
[1760214292069,0.5933874,110880.0,110870.0,0.01577069]
[1760214292300,0.59787402,110880.0,110870.0,0.01577069]
[1760214292521,0.62802592,110880.0,110870.0,0.03138962]
[1760214292742,0.55103273,110880.0,110870.0,0.08480927]
[1760214292953,0.60873273,110880.0,110870.0,0.05256927]
[1760214293162,0.65681273,110880.0,110870.0,0.01732962]
[1760214294730,1.55513659,110880.0,110870.0,0.01732962]
[1760214295820,0.60873273,110880.0,110870.0,0.01732962]
[1760214296517,0.65681273,110880.0,110870.0,0.01732962]
[1760214296729,0.64506974,110880.0,110870.0,0.01732962]
[1760214297202,1.5433936,110880.0,110870.0,0.01732962]
[1760214298155,1.66132632,110880.0,110870.0,0.01732962]
[1760214298367,1.57260698,110880.0,110870.0,0.01732962]
[1760214299674,0.59698974,110880.0,110870.0,0.03048962]
[1760214299887,0.56328974,110880.0,110870.0,0.06272962]
[1760214300117,0.59698974,110880.0,110870.0,0.06272962]
[1760214300331,0.64506974,110880.0,110870.0,0.01732962]
[1760214300552,0.63626262,110880.0,110870.0,0.01732962]
[1760214300777,1.53458648,110880.0,110870.0,0.01732962]
[1760214302146,0.58818262,110880.0,110870.0,0.01732962]
[1760214302360,0.58818262,110880.0,110870.0,0.05142962]
[1760214302577,0.58818262,110880.0,110870.0,0.05788858]
[1760214302796,0.63845262,110880.0,110870.0,0.02378858]
[1760214303011,0.63845262,110880.0,110870.0,0.01732962]
[1760214303435,1.53677648,110880.0,110870.0,0.01732962]
[1760214303892,1.53677648,110880.0,110870.0,0.02575846]
[1760214304332,0.63845262,110880.0,110870.0,0.02575846]
[1760214304549,1.53677648,110880.0,110870.0,0.02575846]
[1760214304779,0.53048262,110880.0,110870.0,0.09798846]
[1760214305092,0.53048262,110880.0,110870.0,0.05985846]
[1760214305276,0.59155262,110880.0,110870.0,0.02575846]
[1760214305493,0.64182262,110880.0,110870.0,0.02575846]
[1760214306394,1.54014648,110880.0,110870.0,0.02575846]
[1760214308783,1.58845885,110880.0,110870.0,0.02575846]
[1760214309003,0.53048262,110880.0,110870.0,0.07301846]
[1760214309216,0.53048262,110880.0,110870.0,0.08413331]
[1760214309640,0.53048262,110880.0,110870.0,0.02575846]
[1760214309641,0.64182262,110880.0,110870.0,0.02575846]
[1760214310121,0.55612262,110880.0,110870.0,0.05985846]
[1760214310303,0.59155262,110880.0,110870.0,0.05985846]
[1760214310975,0.64182262,110880.0,110870.0,0.02575846]
[1760214311188,1.54014648,110880.0,110870.0,0.02575846]
[1760214312710,0.64182262,110880.0,110870.0,0.02575846]
[1760214312922,0.66110221,110880.0,110870.0,0.02575846]
[1760214313570,1.64814541,110880.0,110870.0,0.02575846]
[1760214313783,1.67720447,110880.0,110870.0,0.02575846]
[1760214314206,5.87247247,110880.0,110870.0,0.02575846]
[1760214314422,4.88542927,110880.0,110870.0,0.02575846]
[1760214314632,5.78375313,110880.0,110870.0,0.02575846]
[1760214315518,1.58848513,110880.0,110870.0,0.02575846]
[1760214316369,5.78375313,110880.0,110870.0,0.02575846]
[1760214316662,5.87247247,110880.0,110870.0,0.02575846]
[1760214317331,5.89640951,110880.0,110870.0,0.02575846]
[1760214317551,5.89640951,110880.0,110870.0,0.02577948]
[1760214318379,5.89640951,110880.0,110870.0,0.01732962]
[1760214319049,5.94106405,110880.0,110870.0,0.01732962]
[1760214319286,5.97301517,110880.0,110870.0,0.01732962]
[1760214319725,5.94286327,110880.0,110870.0,0.01732962]
[1760214319936,5.9451109,110880.0,110870.0,0.01732962]
[1760214320155,5.9461109,110880.0,110870.0,0.01732962]
[1760214320411,5.92317386,110880.0,110870.0,0.01732962]
[1760214321498,5.95107813,110880.0,110870.0,0.01732962]
[1760214323465,4.9070716,110880.0,110870.0,0.01732962]
[1760214323682,5.82952849,110880.0,110870.0,0.01732962]
[1760214323891,5.80539546,110880.0,110870.0,0.01732962]
[1760214324589,4.93613066,110880.0,110870.0,0.01732962]
[1760214324594,5.83445452,110880.0,110870.0,0.01732962]
[1760214325012,5.92317386,110880.0,110870.0,0.01732962]
[1760214325875,4.93613066,110880.0,110870.0,0.01732962]
[1760214326309,5.83445452,110880.0,110870.0,0.01732962]
[1760214327007,5.86235879,110880.0,110870.0,0.01732962]
[1760214327265,5.91032991,110880.0,110870.0,0.01732962]
[1760214327955,0.27499148,110880.0,110870.0,0.06548962]
[1760214328171,0.18288083,110880.0,110870.0,0.13202214]
[1760214328431,0.18288083,110880.0,110870.0,0.03138962]
[1760214328432,0.63422083,110880.0,110870.0,0.03138962]
[1760214328646,0.65350042,110880.0,110870.0,0.01732962]
[1760214329091,0.68265232,110880.0,110870.0,0.01732962]
[1760214329313,0.71071138,110880.0,110870.0,0.01732962]
[1760214330007,4.94686428,110880.0,110870.0,0.01732962]
[1760214330445,4.9788154,110880.0,110870.0,0.01732962]
[1760214330654,5.62272876,110880.0,110870.0,0.01732962]
[1760214330882,5.80310394,110880.0,110870.0,0.01732962]
[1760214331106,4.90478008,110880.0,110870.0,0.01732962]
[1760214331537,0.68045302,110880.0,110870.0,0.01732962]
[1760214332239,0.68087302,110880.0,110870.0,0.01732962]
[1760214333286,0.68087253,110880.0,110870.0,0.01732962]
[1760214334127,0.76959187,110880.0,110870.0,0.01732962]
[1760214334546,0.68087253,110880.0,110870.0,0.01732962]
[1760214336089,0.63018253,110880.0,110870.0,0.05055962]
[1760214336317,0.22980667,110880.0,110870.0,0.05055962]
[1760214336526,0.18037518,110880.0,110870.0,0.08696962]
[1760214338414,0.23729518,110880.0,110870.0,0.01732962]
[1760214338626,0.26744708,110880.0,110870.0,0.01732962]
[1760214338849,0.31813708,110880.0,110870.0,0.01732962]
[1760214339245,0.65813708,110880.0,110870.0,0.01732962]
[1760214339459,0.60744708,110880.0,110870.0,0.01732962]
[1760214339671,1.28503799,110880.0,110870.0,0.01732962]
[1760214340129,0.13926632,110890.0,110870.0,1.01576002]
[1760214340346,0.20397451,110900.0,110880.0,0.90528609]
[1760214340347,0.15584484,110900.0,110880.0,0.90528609]
[1760214340566,0.00058958,110900.0,110890.0,0.93992982]
[1760214340777,0.18093223,110900.0,110890.0,0.75957091]
[1760214340991,0.18093223,110900.0,110890.0,0.84829025]
[1760214341222,0.18093223,110900.0,110890.0,0.13428934]
[1760214341441,0.21295223,110900.0,110890.0,0.04557]
[1760214341649,0.18093223,110900.0,110890.0,0.04557]
[1760214341863,0.23785223,110900.0,110890.0,0.01234]
[1760214342074,0.23785223,110900.0,110890.0,0.01134]
[1760214342297,0.18035891,110890.0,110880.0,0.01187916]
[1760214342553,0.88284982,110890.0,110880.0,0.09063318]
[1760214342778,0.88284982,110890.0,110880.0,0.04360916]
[1760214342779,0.18035891,110890.0,110880.0,0.04360916]
[1760214343401,0.21209891,110890.0,110880.0,0.04360916]
[1760214343613,0.18035891,110890.0,110880.0,0.04360916]
[1760214343856,0.23759891,110890.0,110880.0,0.01187916]
[1760214344078,0.28880891,110890.0,110880.0,0.00096916]
[1760214344294,0.31896081,110890.0,110880.0,0.00096916]
[1760214344510,1.30040639,110890.0,110880.0,0.00096916]
[1760214344722,1.34873731,110890.0,110880.0,0.00096916]
[1760214344934,1.43745665,110890.0,110880.0,0.00096916]
[1760214345150,1.37587465,110890.0,110880.0,0.00096916]
[1760214345795,0.73442907,110890.0,110880.0,0.00096916]
[1760214346227,1.37687465,110890.0,110880.0,0.00096916]
[1760214346686,1.37587465,110890.0,110880.0,0.00096916]
[1760214346888,1.37787465,110890.0,110880.0,0.00096916]
[1760214347302,1.34881559,110890.0,110880.0,0.00096916]
[1760214347958,1.34781559,110890.0,110880.0,0.00096916]
[1760214348208,1.34680008,110890.0,110880.0,0.00096916]
[1760214348441,1.34880008,110890.0,110880.0,0.00096916]
[1760214348750,0.7073545,110890.0,110880.0,0.00096916]
[1760214349323,0.6561445,110890.0,110880.0,0.04378916]
[1760214349531,0.63688815,110890.0,110880.0,0.04378916]
[1760214349733,0.002,110890.0,110880.0,0.25975434]
[1760214349932,0.002,110890.0,110880.0,0.30536105]
[1760214350481,0.001,110890.0,110880.0,0.30536105]
[1760214350683,0.002,110890.0,110880.0,0.30536105]
[1760214350867,0.18135891,110890.0,110880.0,0.30536105]
[1760214351114,0.18135891,110890.0,110880.0,0.12498587]
[1760214351319,0.18035891,110890.0,110880.0,0.12498587]
[1760214351577,0.18135891,110890.0,110880.0,0.08939587]
[1760214352015,0.18035891,110890.0,110880.0,0.08939587]
[1760214352221,0.18035891,110890.0,110880.0,0.12498587]
[1760214353499,0.18035891,110890.0,110880.0,0.30536105]
[1760214353951,0.18093223,110900.0,110880.0,0.30536105]
[1760214354197,0.18035891,110890.0,110880.0,0.30536105]
[1760214354426,0.18035891,110890.0,110880.0,0.12498587]
[1760214355163,0.18035891,110890.0,110880.0,0.30536105]
[1760214355348,0.18035891,110890.0,110880.0,0.12498587]
[1760214356600,0.18035891,110890.0,110880.0,0.08939587]
[1760214356811,0.26775081,110890.0,110880.0,0.01205916]
[1760214357012,0.31896081,110890.0,110880.0,0.01205916]
[1760214357795,0.23601081,110890.0,110880.0,0.04378916]
[1760214358152,0.26775081,110890.0,110880.0,0.04378916]
[1760214358708,0.21051081,110890.0,110880.0,0.04378916]
[1760214358913,0.20643223,110900.0,110880.0,0.2527752]
[1760214359121,0.52093223,110900.0,110890.0,0.03467]
[1760214359712,0.52093223,110900.0,110890.0,0.03173]
[1760214359838,0.27062621,110910.0,110890.0,0.03173]
[1760214360040,0.18034265,110900.0,110890.0,0.03173]
[1760214360249,0.23758265,110900.0,110890.0,0.06047452]
[1760214360455,0.18035891,110890.0,110880.0,0.04067002]
[1760214360856,0.18035891,110890.0,110880.0,0.07240002]
[1760214361450,0.18035891,110890.0,110880.0,0.2527752]
[1760214362285,0.18035891,110890.0,110880.0,0.07240002]
[1760214362667,0.21423891,110890.0,110880.0,0.07240002]
[1760214362867,0.28744891,110890.0,110880.0,0.04067002]
[1760214363051,0.23802891,110890.0,110880.0,0.04657916]
[1760214363277,0.23802891,110890.0,110880.0,0.01205916]
[1760214363680,0.18035891,110890.0,110880.0,0.04657916]
[1760214363898,0.23802891,110890.0,110880.0,0.04657916]
[1760214364103,0.31760081,110890.0,110880.0,0.00096916]
[1760214364308,1.3804498,110890.0,110880.0,0.00096916]
[1760214364509,1.35524068,110890.0,110880.0,0.00096916]
[1760214365332,1.37450651,110890.0,110880.0,0.00096916]
[1760214367627,0.73306093,110890.0,110880.0,0.00096916]
[1760214367792,1.37450651,110890.0,110880.0,0.00096916]
[1760214369822,5.56977451,110890.0,110880.0,0.00096916]
[1760214370024,5.68255444,110890.0,110880.0,0.00096916]
[1760214370824,5.69927599,110890.0,110880.0,0.00096916]
[1760214371252,5.58149759,110890.0,110880.0,0.00096916]
[1760214372102,5.61019406,110890.0,110880.0,0.00096916]
[1760214377550,5.64644716,110890.0,110880.0,0.00096916]
[1760214379184,4.96874848,110890.0,110880.0,0.00096916]
[1760214379394,5.61775069,110890.0,110880.0,0.00096916]
[1760214379815,6.27872782,110890.0,110880.0,0.00096916]
[1760214380017,6.36744716,110890.0,110880.0,0.00096916]
[1760214380671,5.71820853,110890.0,110880.0,0.00096916]
[1760214380899,6.39590721,110890.0,110880.0,0.00096916]
[1760214381308,6.39594721,110890.0,110880.0,0.00096916]
[1760214381518,6.30722787,110890.0,110880.0,0.00096916]
[1760214383899,6.32395578,110890.0,110880.0,0.00096916]
[1760214385159,4.96855842,110890.0,110880.0,0.00096916]
[1760214385369,6.32395578,110890.0,110880.0,0.00096916]
[1760214385805,6.3559069,110890.0,110880.0,0.00096916]
[1760214386006,6.44462624,110890.0,110880.0,0.00096916]
[1760214386994,2.25035824,110890.0,110880.0,0.00096916]
[1760214387228,6.44562624,110890.0,110880.0,0.00096916]
[1760214387595,6.44330336,110890.0,110880.0,1e-08]
[1760214387784,6.47176341,110890.0,110880.0,1e-08]
[1760214388192,6.47276341,110890.0,110880.0,1e-08]
[1760214388401,6.3579069,110890.0,110880.0,1e-08]
[1760214389265,6.33384631,110890.0,110880.0,1e-08]
[1760214390032,4.97844895,110890.0,110880.0,1e-08]
[1760214390246,6.33384631,110890.0,110880.0,1e-08]
[1760214391097,4.97844895,110890.0,110880.0,1e-08]
[1760214391310,6.42256565,110890.0,110880.0,1e-08]
[1760214391968,6.4466771,110890.0,110880.0,1e-08]
[1760214392219,6.42256565,110890.0,110880.0,1e-08]
[1760214393284,6.47053677,110890.0,110880.0,1e-08]
[1760214393549,6.32019147,110890.0,110880.0,1e-08]
[1760214395110,6.28824035,110890.0,110880.0,1e-08]
[1760214395311,6.32043705,110890.0,110880.0,1e-08]
[1760214395563,6.32043719,110890.0,110880.0,1e-08]
[1760214396317,6.28824035,110890.0,110880.0,1e-08]
[1760214398308,0.34,110870.0,110840.0,0.05747245]
[1760214398520,0.26860589,110850.0,110840.0,0.05747245]
[1760214398730,0.92136192,110850.0,110840.0,0.05747245]
[1760214398952,0.22984172,110850.0,110840.0,0.09281172]
[1760214399163,0.26860589,110850.0,110840.0,0.09281172]
[1760214399383,0.31883589,110850.0,110840.0,0.06042172]
[1760214399601,0.21057589,110850.0,110840.0,0.10045204]
[1760214399859,0.18042399,110850.0,110840.0,0.13435204]
[1760214400495,0.21409399,110850.0,110840.0,0.10045204]
[1760214400913,0.28673399,110850.0,110840.0,0.10045204]
[1760214401115,0.23749399,110850.0,110840.0,0.09281172]
[1760214401369,0.28673399,110850.0,110840.0,0.06042172]
[1760214401577,0.20382399,110850.0,110840.0,0.09378172]
[1760214401796,0.18046399,110850.0,110840.0,0.09378172]
[1760214401996,0.21274399,110850.0,110840.0,0.09378172]
[1760214402210,0.21274399,110850.0,110840.0,0.12613262]
[1760214402429,0.23988661,110850.0,110840.0,0.12613262]
[1760214402615,0.26324661,110850.0,110840.0,0.09378172]
[1760214402831,0.94516454,110850.0,110840.0,0.06042172]
[1760214403034,0.92438459,110850.0,110840.0,0.09378172]
[1760214403207,0.94516454,110850.0,110840.0,0.06042172]
[1760214403618,0.23775851,110850.0,110840.0,0.09378172]
[1760214403823,0.29339851,110850.0,110840.0,0.09378172]
[1760214404197,0.34263851,110850.0,110840.0,0.06042172]
[1760214405130,0.29339851,110850.0,110840.0,0.09378172]
[1760214405349,0.02718262,110850.0,110840.0,0.10475804]
[1760214405510,0.20760661,110850.0,110840.0,0.13804804]
[1760214406953,0.20760661,110850.0,110840.0,0.09378172]
[1760214407317,0.26324661,110850.0,110840.0,0.09378172]
[1760214407551,0.31248661,110850.0,110840.0,0.06042172]
[1760214407764,0.26324661,110850.0,110840.0,0.09378172]
[1760214408100,0.29339851,110850.0,110840.0,0.09378172]
[1760214408303,0.29339851,110850.0,110840.0,0.06042172]
[1760214408531,0.34263851,110850.0,110840.0,0.06042172]
[1760214409041,0.23775851,110850.0,110840.0,0.12707172]
[1760214409268,0.20760661,110850.0,110840.0,0.13471204]
[1760214410500,0.23988661,110850.0,110840.0,0.09378172]
[1760214411771,0.97362459,110850.0,110840.0,0.06042172]
[1760214411892,0.9929426,110850.0,110840.0,0.06042172]
[1760214412621,0.39041657,110850.0,110840.0,0.06042172]
[1760214412815,0.23775851,110850.0,110840.0,0.09378172]
[1760214413008,0.27003851,110850.0,110840.0,0.12787625]
[1760214413209,0.27003851,110850.0,110840.0,0.06042172]
[1760214413210,1.38675317,110850.0,110840.0,0.06042172]
[1760214413448,0.55059217,110840.0,110820.0,0.07006858]
[1760214413644,5.39589384,110830.0,110820.0,0.07006858]
[1760214413980,5.66288314,110830.0,110820.0,0.07006858]
[1760214414223,1.49472503,110830.0,110820.0,0.07006858]
[1760214414422,5.68999303,110830.0,110820.0,0.07006858]
[1760214414630,1.49472503,110830.0,110820.0,0.07006858]
[1760214414831,5.69004353,110830.0,110820.0,0.07006858]
[1760214415058,5.71718913,110830.0,110820.0,0.07006858]
[1760214415261,5.08245419,110830.0,110820.0,0.07006858]
[1760214415472,5.66827364,110830.0,110820.0,0.07006858]
[1760214415908,1.47300564,110830.0,110820.0,0.07006858]
[1760214416121,5.66827364,110830.0,110820.0,0.07006858]
[1760214417221,5.06574761,110830.0,110820.0,0.07006858]
[1760214417426,5.65983462,110830.0,110820.0,0.07006858]
[1760214417647,5.57111528,110830.0,110820.0,0.07006858]
[1760214417856,5.57111528,110830.0,110820.0,0.11416858]
[1760214417857,0.90390857,110830.0,110820.0,0.11416858]
[1760214418067,0.95314857,110830.0,110820.0,0.07006858]
[1760214418271,0.98330047,110830.0,110820.0,0.07006858]
[1760214418477,0.70145643,110830.0,110820.0,0.07006858]
[1760214418681,1.30398246,110830.0,110820.0,0.07006858]
[1760214418909,1.30298246,110830.0,110820.0,0.07006858]
[1760214419113,1.30398246,110830.0,110820.0,0.07006858]
[1760214419536,1.30298246,110830.0,110820.0,0.07006858]
[1760214420405,1.3907018,110830.0,110820.0,0.07006858]
[1760214420620,1.40992358,110830.0,110820.0,0.07006858]
[1760214420830,5.63365163,110830.0,110820.0,0.07006858]
[1760214421460,0.06318976,110830.0,110820.0,0.74725461]
[1760214421671,5.05e-05,110830.0,110820.0,1.22422658]
[1760214421879,0.00100964,110850.0,110840.0,0.18044027]
[1760214422089,0.00110084,110850.0,110840.0,1.09257544]
[1760214422300,0.00110084,110850.0,110840.0,1.24669478]
[1760214422507,0.00110084,110850.0,110840.0,0.34766961]
[1760214422975,0.00110084,110850.0,110840.0,0.25895027]
[1760214424040,0.00114084,110850.0,110840.0,0.25895027]
[1760214424685,0.00114084,110850.0,110840.0,1.15797544]
[1760214424886,0.00114084,110850.0,110840.0,0.25895027]
[1760214425096,0.00114084,110850.0,110840.0,1.15797544]
[1760214425330,0.00114084,110850.0,110840.0,1.24669478]
[1760214425532,0.00114084,110850.0,110840.0,0.34766961]
[1760214425743,0.00114084,110850.0,110840.0,0.25895027]
[1760214426358,0.00114084,110850.0,110840.0,1.15797544]
[1760214430850,0.00114084,110850.0,110840.0,0.25895027]
[1760214432163,0.00114084,110850.0,110840.0,1.15797544]
[1760214432781,0.00114084,110850.0,110840.0,0.25895027]
[1760214433003,0.00114084,110850.0,110840.0,0.30294859]
[1760214433208,0.21655225,110870.0,110850.0,0.18042399]
[1760214433209,0.16185749,110870.0,110850.0,0.18042399]
[1760214433425,0.18040812,110860.0,110850.0,0.21347964]
[1760214433618,0.16185749,110870.0,110850.0,0.21377964]
[1760214433823,0.16185749,110870.0,110860.0,0.01944]
[1760214434025,0.16185749,110870.0,110860.0,0.04276196]
[1760214434242,0.16185749,110870.0,110860.0,0.07561196]
[1760214434442,0.19355749,110870.0,110860.0,0.07561196]
[1760214434576,0.16185749,110870.0,110860.0,0.07561196]
[1760214435628,0.16185749,110870.0,110860.0,0.10816196]
[1760214436374,0.21656738,110880.0,110860.0,0.30661045]
[1760214436577,0.18039144,110870.0,110860.0,0.28856968]
[1760214437193,0.18043144,110870.0,110860.0,0.28856968]
[1760214437398,0.18043144,110870.0,110860.0,0.10816196]
[1760214437808,0.18043144,110870.0,110860.0,0.07561196]
[1760214438094,0.18043144,110870.0,110860.0,0.10816196]
[1760214440126,0.18043144,110870.0,110860.0,0.07561196]
[1760214440328,0.18043144,110870.0,110860.0,0.10816196]
[1760214441353,4e-05,110870.0,110860.0,0.28856968]
[1760214441554,4e-05,110870.0,110860.0,1.18759485]
[1760214443275,4e-05,110870.0,110860.0,1.18859485]
[1760214443795,0.00121957,110870.0,110860.0,1.18859485]
[1760214443994,0.00121957,110870.0,110860.0,1.52859485]
[1760214444854,0.00121957,110870.0,110860.0,1.62859484]
[1760214445030,0.00121957,110870.0,110860.0,1.65359483]
[1760214446845,4e-05,110890.0,110880.0,0.52037518]
[1760214447056,4e-05,110890.0,110880.0,1.52122969]
[1760214447251,4e-05,110890.0,110880.0,1.58662969]
[1760214447658,4e-05,110890.0,110880.0,1.83131109]
[1760214448097,4e-05,110890.0,110880.0,1.83231109]
[1760214448454,4e-05,110890.0,110880.0,1.83131109]
[1760214448856,4e-05,110890.0,110880.0,1.83231109]
[1760214449070,4e-05,110890.0,110880.0,1.83131109]
[1760214449275,4e-05,110890.0,110880.0,1.83331109]
[1760214449703,4e-05,110890.0,110880.0,1.83231109]
[1760214450112,4e-05,110890.0,110880.0,1.71262967]
[1760214450466,4e-05,110890.0,110880.0,1.58762969]
[1760214450903,4e-05,110890.0,110880.0,1.24962969]
[1760214451226,4e-05,110890.0,110880.0,0.35060452]
[1760214451576,0.18039891,110890.0,110880.0,0.04896]
[1760214451804,0.18039891,110890.0,110880.0,0.22933518]
[1760214452007,0.18039891,110890.0,110880.0,0.04896]
[1760214452207,0.31575081,110890.0,110880.0,0.002]
[1760214452408,0.33360528,110890.0,110880.0,0.002]
[1760214452638,0.18038418,110880.0,110860.0,0.23315802]
[1760214452982,0.18038418,110880.0,110870.0,0.033]
[1760214453187,0.18038418,110880.0,110870.0,0.0629058]
[1760214453401,0.18038418,110880.0,110870.0,0.24329724]
[1760214453660,0.21055081,110890.0,110870.0,0.27619724]
[1760214453859,0.21055081,110890.0,110880.0,0.19383518]
[1760214454110,4e-05,110890.0,110880.0,0.25973518]
[1760214454266,4e-05,110890.0,110880.0,1.24747969]
[1760214454943,4e-05,110890.0,110880.0,1.58747969]
[1760214455514,8e-05,110890.0,110880.0,1.35430202]
[1760214456067,8e-05,110890.0,110880.0,1.45430201]
[1760214456645,8e-05,110890.0,110880.0,2.21583094]
[1760214457012,8e-05,110890.0,110880.0,2.21683094]
[1760214457226,8e-05,110890.0,110880.0,2.21583094]
[1760214457640,8e-05,110890.0,110880.0,2.21783094]
[1760214457861,8e-05,110890.0,110880.0,2.21583094]
[1760214458121,8e-05,110890.0,110880.0,1.57698343]
[1760214458398,0.00125925,110890.0,110880.0,1.57598343]
[1760214458626,0.00125925,110890.0,110880.0,1.57698343]
[1760214458834,0.00125925,110890.0,110880.0,1.54683153]
[1760214459059,0.00125925,110890.0,110880.0,1.43130202]
[1760214459557,0.00125925,110890.0,110880.0,0.99230203]
[1760214460204,0.00125925,110890.0,110880.0,0.22983518]
[1760214460205,0.05737925,110890.0,110880.0,0.22983518]
[1760214460434,0.23773816,110890.0,110880.0,0.01646]
[1760214460653,0.20663816,110890.0,110880.0,0.04826]
[1760214460906,0.18161816,110890.0,110880.0,0.08148]
[1760214461130,0.00125925,110890.0,110880.0,0.26085518]
[1760214461351,0.00125925,110890.0,110880.0,0.35057452]
[1760214461561,0.00125925,110890.0,110880.0,0.90270269]
[1760214461989,0.00125925,110890.0,110880.0,0.90170269]
[1760214462235,0.00125925,110890.0,110880.0,0.90270269]
[1760214463261,0.00125925,110890.0,110880.0,1.24270269]
[1760214464989,0.00125925,110890.0,110880.0,0.08148]
[1760214465164,0.00125925,110890.0,110880.0,0.28804232]
[1760214465345,0.00125925,110890.0,110880.0,0.92888983]
[1760214469366,0.00125925,110890.0,110880.0,0.28804232]
[1760214470230,0.00125925,110890.0,110880.0,0.25582232]
[1760214470431,0.00125925,110890.0,110880.0,0.92888983]
[1760214471250,0.00125925,110890.0,110880.0,0.28804232]
[1760214472076,0.23126668,110890.0,110880.0,0.04926]
[1760214472390,0.20676085,110890.0,110880.0,0.22963518]
[1760214473131,0.02640194,110890.0,110880.0,0.22963518]
[1760214473330,0.02640194,110890.0,110880.0,0.26185518]
[1760214473750,0.02640194,110890.0,110880.0,0.90270269]
[1760214473950,0.01797777,110890.0,110880.0,0.35057452]
[1760214474507,0.01797777,110890.0,110880.0,0.99142203]
[1760214474689,0.01797777,110890.0,110880.0,0.35057452]
[1760214474891,0.01797777,110890.0,110880.0,0.90270269]
[1760214475405,0.18161816,110890.0,110880.0,0.04926]
[1760214475678,0.01797777,110890.0,110880.0,0.22963518]
[1760214475882,0.00125925,110890.0,110880.0,0.22963518]
[1760214476093,0.23933816,110890.0,110880.0,0.19583518]
[1760214476345,0.23933816,110890.0,110880.0,0.05308247]
[1760214476558,0.23933816,110890.0,110880.0,0.002]
[1760214476559,0.25605947,110890.0,110880.0,0.002]
[1760214476782,0.33214137,110890.0,110880.0,0.002]
[1760214476987,5.54077473,110890.0,110880.0,0.002]
[1760214477204,5.61593329,110890.0,110880.0,0.002]
[1760214477413,5.73179211,110890.0,110880.0,0.002]
[1760214477625,1.53652411,110890.0,110880.0,0.002]
[1760214477831,5.73179211,110890.0,110880.0,0.001]
[1760214478252,5.59510165,110890.0,110880.0,0.001]
[1760214478667,0.55054334,110870.0,110860.0,0.00096945]
[1760214478868,0.61125477,110870.0,110860.0,0.00096945]
[1760214479071,0.69011477,110870.0,110860.0,0.00096945]
[1760214479717,5.52623028,110870.0,110860.0,0.00096945]
[1760214479924,5.61494962,110870.0,110860.0,0.00196945]
[1760214480132,5.52623028,110870.0,110860.0,0.00296945]
[1760214480585,5.52623028,110870.0,110860.0,0.00196945]
[1760214480802,5.52723028,110870.0,110860.0,0.00196945]
[1760214481016,5.55967295,110870.0,110860.0,0.00196945]
[1760214481269,5.65641933,110870.0,110860.0,0.00196945]
[1760214481498,5.04667513,110860.0,110850.0,0.00050565]
[1760214481710,0.29508591,110860.0,110850.0,0.00050565]
[1760214481915,5.1955313,110860.0,110850.0,0.00050565]